bitfinex-derivatives/quotes_ETHF0:USTF0_20260123
["timestamp","ask_amount","ask_price","bid_price","bid_amount"]
[1769191300105,4.26577622,2987.4,2984.9,3.7291332]
[1769191300402,5.986,2987.3,2984.9,3.7291332]
[1769191300606,0.16759,2986.8,2984.9,3.7291332]
[1769191300805,0.17077679,2986.8,2984.9,3.7291332]
[1769191301310,0.00318679,2986.8,2984.9,3.7291332]
[1769191301808,2.96984294,2986.4,2984.4,3.73415732]
[1769191301999,0.16766,2985.7,2984.4,3.73415732]
[1769191302201,1.06796926,2985.6,2984.4,3.73415732]
[1769191302504,0.90030926,2985.5,2984.4,3.73415732]
[1769191302701,10.237767,2985.5,2984.4,3.73415732]
[1769191302899,0.16768,2985.2,2984.0,0.00286877]
[1769191303101,0.16771,2984.8,2984.0,0.00286877]
[1769191303411,0.90030926,2984.7,2983.4,3.7291332]
[1769191303602,0.90030926,2984.6,2983.4,3.7291332]
[1769191303802,27.2,2985.1,2983.4,3.7291332]
[1769191304003,0.90033483,2985.0,2983.4,3.7291332]
[1769191304210,0.90033483,2984.9,2983.4,3.73186199]
[1769191304508,0.16773,2984.4,2983.4,0.00272879]
[1769191304704,0.90033483,2984.3,2982.8,3.7291332]
[1769191304906,0.16775,2984.0,2982.3,3.7291332]
[1769191305104,0.90033483,2983.9,2982.3,3.7291332]
[1769191305304,0.00502412,2983.3,2982.5,3.7291332]
[1769191305703,0.00502412,2983.3,2982.5,3.73334176]
[1769191310105,0.00502412,2983.3,2981.4,0.16789]
[1769191310306,0.89718363,2983.2,2981.1,3.355]
[1769191310505,0.8972167,2983.1,2981.1,3.355]
[1769191310707,0.8972167,2983.0,2980.8,0.16793]
[1769191310908,0.16779,2983.2,2980.9,0.00272879]
[1769191311103,0.89724988,2983.1,2981.0,0.00272879]
[1769191311304,0.89724988,2983.0,2981.0,0.00272879]
[1769191311506,0.16781,2983.0,2981.1,0.00272879]
[1769191311707,0.16781,2983.0,2980.9,0.00340743]
[1769191311908,1.06484841,2982.9,2980.9,0.00340743]
[1769191312105,1.06484841,2982.8,2981.0,3.7291332]
[1769191312308,0.16782,2982.8,2981.0,3.7291332]
[1769191313107,0.89689854,2982.7,2981.0,3.7291332]
[1769191313308,0.16782,2982.8,2981.0,3.7291332]
[1769191313614,0.89716624,2982.7,2981.0,3.7291332]
[1769191313819,0.16782,2982.8,2981.0,3.7291332]
[1769191314015,0.89716569,2982.7,2981.0,3.7291332]
[1769191314215,0.16782,2982.8,2981.0,3.7291332]
[1769191314415,0.89756673,2982.7,2981.0,3.7291332]
[1769191314613,0.16782,2982.8,2981.0,3.7291332]
[1769191314806,0.89753796,2982.7,2981.0,3.7291332]
[1769191315105,0.16782,2982.8,2981.0,3.7291332]
[1769191317404,9.33745774,2982.7,2981.0,3.7291332]
[1769191317607,30.65530176,2982.9,2981.0,3.7291332]
[1769191317807,0.89681998,2982.8,2981.0,3.7291332]
[1769191318116,0.16784,2982.4,2981.0,3.7291332]
[1769191319015,0.16784,2982.4,2980.9,0.00340743]
[1769191319016,0.16787,2981.8,2980.9,0.00340743]
[1769191319310,0.16789,2981.5,2980.0,3.7291332]
[1769191320111,0.16789,2981.5,2980.0,3.7330221]
[1769191320508,27.2,2981.6,2980.0,3.7330221]
[1769191321014,3.45185325,2982.3,2980.0,3.7330221]
[1769191321015,2.694,2981.9,2980.3,3.8970832]
[1769191321208,0.16783,2982.5,2980.5,3.90210608]
[1769191321407,30.06384,2982.4,2980.5,3.90210608]
[1769191321812,3.36044851,2982.9,2980.8,3.7291332]
[1769191322015,2.698,2982.4,2980.8,3.8970632]
[1769191322210,2.698,2982.4,2980.8,3.89979199]
[1769191322514,2.698,2982.4,2981.2,3.54462875]
[1769191323717,2.698,2982.4,2980.5,0.00503288]
[1769191323718,0.16787,2981.8,2980.5,0.00503288]
[1769191324310,0.16788,2981.7,2980.5,0.00503288]
[1769191324619,2.711,2981.6,2980.5,0.00503288]
[1769191325515,2.87888,2981.6,2980.5,0.00503288]
[1769191326317,0.16789,2981.4,2979.9,3.54462875]
[1769191326517,2.711,2981.6,2979.9,3.54462875]
[1769191326917,2.711,2981.6,2980.0,3.62179866]
[1769191327312,2.711,2981.6,2980.4,0.00272879]
[1769191327519,2.711,2981.6,2980.5,3.61790976]
[1769191327921,2.711,2981.6,2980.6,0.00272879]
[1769191328123,2.711,2981.6,2980.8,0.00272879]
[1769191328420,3.358,2981.7,2980.8,0.00272879]
[1769191328615,3.358,2981.7,2980.5,3.61790976]
[1769191328815,3.358,2981.7,2981.0,0.00272879]
[1769191329023,2.712,2982.1,2981.0,3.62063855]
[1769191329324,2.712,2982.1,2981.2,0.00272879]
[1769191329521,2.712,2982.1,2980.7,0.00272879]
[1769191329720,2.712,2982.1,2981.0,0.00272879]
[1769191329922,3.59810228,2982.6,2981.1,0.00272879]
[1769191330116,3.59810228,2982.6,2980.8,3.78582976]
[1769191330416,6.072,2982.7,2981.0,3.78582976]
[1769191330619,0.89770079,2982.6,2981.0,3.78582976]
[1769191330813,0.89773661,2982.5,2981.2,0.00272879]
[1769191331013,0.89776496,2982.4,2981.0,3.62063855]
[1769191331320,0.89953152,2982.3,2981.1,0.00272879]
[1769191331619,0.89953139,2982.2,2980.5,3.61790976]
[1769191331818,0.16787,2981.8,2980.0,0.0038889]
[1769191332019,0.89953139,2981.7,2980.0,0.0038889]
[1769191332221,10.23698913,2981.7,2980.5,0.00272879]
[1769191332423,2.72,2982.3,2980.9,0.00272879]
[1769191332617,2.72,2982.3,2980.0,0.0038889]
[1769191332618,0.90142184,2982.2,2980.5,0.00272879]
[1769191332812,0.90142184,2982.1,2980.4,3.61790976]
[1769191333013,0.90142184,2982.0,2980.4,3.61790976]
[1769191333319,0.90142184,2981.9,2980.6,0.00272879]
[1769191333617,0.90142184,2981.8,2980.5,0.00272879]
[1769191333817,5.06538048,2982.3,2980.5,0.00272879]
[1769191334016,0.9022198,2982.2,2980.6,0.00272879]
[1769191334324,3.59810228,2981.7,2980.0,0.0038889]
[1769191334520,0.9022198,2981.6,2980.0,0.0038889]
[1769191334722,0.9022198,2981.6,2980.1,0.00272879]
[1769191335017,0.9022198,2981.6,2980.0,0.0038889]
[1769191335018,1.2994282,2981.3,2980.0,0.0038889]
[1769191335223,0.9022198,2981.2,2980.0,0.0038889]
[1769191335520,4.50032208,2981.2,2980.1,0.00272879]
[1769191335726,0.9022198,2981.1,2980.0,0.0038889]
[1769191336725,0.9022198,2981.0,2980.0,0.0038889]
[1769191336924,0.9022198,2980.9,2980.0,0.0038889]
[1769191337122,0.9022198,2980.8,2980.0,0.0038889]
[1769191337427,0.90393915,2980.7,2980.0,0.0038889]
[1769191337630,0.00376722,2980.8,2980.0,0.0038889]
[1769191338024,1.2994282,2981.8,2980.0,3.62179866]
[1769191338227,0.90374703,2981.7,2980.0,3.62179866]
[1769191338429,0.90374703,2981.6,2980.0,3.62179866]
[1769191338719,1.2994282,2981.8,2980.0,3.62179866]
[1769191338720,0.90374703,2981.5,2980.0,3.62179866]
[1769191338925,0.90374703,2981.4,2980.0,0.0038889]
[1769191339125,0.90374703,2981.3,2980.0,0.0038889]
[1769191339323,0.90374703,2981.2,2980.0,0.0038889]
[1769191339525,0.90374703,2981.1,2980.0,0.0038889]
[1769191339827,0.90374703,2981.0,2980.0,0.0038889]
[1769191340026,0.00360841,2981.5,2980.0,0.0038889]
[1769191340328,0.90476675,2981.4,2980.0,0.0038889]
[1769191340529,0.90476675,2981.3,2980.0,0.0038889]
[1769191340819,0.90476675,2981.2,2980.4,0.00503288]
[1769191341024,0.90476675,2981.1,2980.4,0.00503288]
[1769191341224,0.90476675,2981.0,2980.4,0.00503288]
[1769191341420,0.00360841,2981.5,2980.4,0.00503288]
[1769191341621,3.59810228,2982.2,2980.4,0.00503288]
[1769191341824,3.59810228,2982.2,2980.4,3.62294264]
[1769191341825,0.9051449,2982.1,2980.4,3.62294264]
[1769191342128,0.9051449,2982.0,2980.4,3.62294264]
[1769191342322,0.9051449,2981.9,2980.4,3.62294264]
[1769191342623,0.9051449,2981.8,2980.4,3.62294264]
[1769191344221,0.9051449,2981.8,2980.4,3.79089264]
[1769191344725,0.9051449,2981.8,2980.7,3.61790976]
[1769191344922,0.00297232,2981.9,2980.9,0.16792]
[1769191345117,2.96984294,2982.9,2980.7,3.61790976]
[1769191345322,0.90549129,2982.8,2980.7,3.61790976]
[1769191345523,0.90549129,2982.7,2981.2,3.61790976]
[1769191345828,3.59810228,2983.7,2981.7,0.16788]
[1769191346216,3.59810228,2983.7,2981.2,6.97690976]
[1769191346217,3.59810228,2983.7,2981.8,0.16787]
[1769191346421,3.60152134,2983.7,2982.4,0.00503288]
[1769191346722,0.00341906,2983.7,2982.4,0.00862]
[1769191346920,3.60152134,2983.7,2982.4,0.00862]
[1769191347320,12.93556002,2983.6,2982.4,0.00862]
[1769191347518,9.33745774,2983.6,2982.4,0.00862]
[1769191349723,3.60152134,2983.7,2982.4,0.00862]
[1769191349921,3.76929134,2983.7,2982.4,0.00862]
[1769191352235,3.60152134,2983.7,2982.4,0.00862]
[1769191353130,3.51134082,2983.1,2981.0,0.16792]
[1769191353933,3.51134082,2983.1,2981.0,3.54244753]
[1769191354134,3.51134082,2983.1,2981.0,3.54516466]
[1769191355635,3.51134082,2983.1,2981.4,0.16789]
[1769191355829,0.00503288,2983.3,2981.4,3.71033753]
[1769191356638,0.00503288,2983.3,2981.5,0.16789]
[1769191356933,0.00503288,2983.3,2981.8,0.16787]
[1769191357326,0.00503288,2983.3,2981.9,0.16787]
[1769191357934,0.89107194,2983.2,2981.3,7.06734753]
[1769191358136,0.89108064,2983.1,2981.3,3.71034753]
[1769191358334,3.5163737,2983.3,2981.3,3.71034753]
[1769191358533,4.4023668,2983.2,2981.3,3.71034753]
[1769191358836,0.89102598,2983.1,2981.3,3.71034753]
[1769191359034,3.51134082,2983.2,2981.3,3.71034753]
[1769191359233,3.51134082,2983.0,2981.3,0.1679]
[1769191359432,4.40238095,2982.9,2981.3,0.1679]
[1769191359636,4.40238095,2982.8,2981.3,0.1679]
[1769191359940,0.89104013,2982.7,2981.3,0.1679]
[1769191360337,3.51134082,2982.6,2981.0,0.00271713]
[1769191360534,3.51134082,2982.4,2981.0,0.00271713]
[1769191362839,1.2994282,2983.2,2981.1,0.16791]
[1769191362840,9.33745774,2982.3,2981.1,0.16791]
[1769191363043,3.51134082,2982.9,2981.2,0.16791]
[1769191363232,0.88775303,2982.8,2981.2,0.16791]
[1769191363435,0.88775303,2982.7,2981.2,0.16791]
[1769191363644,3.51134082,2982.9,2981.2,0.16791]
[1769191363845,0.8878471,2982.8,2981.2,0.16791]
[1769191364039,0.8878471,2982.7,2981.2,0.16791]
[1769191364240,3.51134082,2982.9,2981.2,0.16791]
[1769191364439,0.88791866,2982.8,2981.2,0.16791]
[1769191364635,3.51134082,2982.9,2981.6,0.16788]
[1769191364839,6.86834082,2983.5,2981.6,0.16788]
[1769191365040,0.88782385,2983.2,2981.6,0.16788]
[1769191365243,0.88817989,2983.1,2981.6,0.16788]
[1769191365445,3.51475988,2983.7,2981.9,0.16787]
[1769191367351,3.68252988,2983.7,2981.9,0.16787]
[1769191368950,3.51134082,2983.0,2981.3,0.1679]
[1769191369158,0.88940988,2982.9,2981.3,0.1679]
[1769191369349,4.4007507,2982.8,2981.3,0.1679]
[1769191369544,3.51134082,2982.7,2981.0,0.00271713]
[1769191369751,0.00503288,2983.3,2981.8,0.16787]
[1769191372760,0.00503288,2983.3,2982.0,0.16786]
[1769191373367,0.00503288,2983.3,2981.7,3.54244753]
[1769191373368,0.00503288,2983.3,2982.2,0.16785]
[1769191373557,0.00503288,2983.3,2982.3,0.16784]
[1769191374154,0.00341906,2983.7,2982.7,0.16782]
[1769191374462,3.357,2984.5,2982.9,0.16781]
[1769191374662,0.89214343,2984.4,2982.9,0.16781]
[1769191374851,0.89214343,2984.3,2982.9,0.16781]
[1769191375055,3.357,2984.5,2982.9,0.16781]
[1769191375266,0.89205593,2984.4,2982.9,0.16781]
[1769191375466,0.89205593,2984.3,2982.9,0.16781]
[1769191375763,0.00345872,2984.5,2983.1,0.1678]
[1769191376063,3.51134082,2985.2,2983.3,3.54244753]
[1769191376259,0.89143895,2985.1,2983.3,3.54244753]
[1769191376563,3.51134082,2985.7,2983.9,0.16775]
[1769191377160,9.33745774,2985.6,2984.1,0.16774]
[1769191377363,3.51134082,2986.4,2984.5,0.16772]
[1769191377560,3.51134082,2986.4,2984.6,0.16771]
[1769191377759,3.51134082,2986.4,2984.5,0.00503288]
[1769191377957,3.79662725,2986.3,2984.5,0.00503288]
[1769191378157,3.79662725,2986.1,2984.5,0.00503288]
[1769191378366,3.79662725,2985.9,2984.5,0.00503288]
[1769191378569,3.80004631,2985.9,2984.5,0.00503288]
[1769191378864,3.79662725,2985.7,2984.5,0.00503288]
[1769191380563,0.00341906,2985.2,2983.2,1.4672182]
[1769191380768,3.79662725,2985.1,2983.2,1.2994282]
[1769191380967,3.79662725,2985.1,2983.7,0.16776]
[1769191381663,3.79662725,2985.1,2983.2,1.2994282]
[1769191381868,3.79662725,2985.1,2983.2,1.4672182]
[1769191382071,3.79662725,2985.1,2983.3,0.16779]
[1769191382970,3.77950661,2984.9,2983.0,3.356]
[1769191383166,3.77950661,2984.9,2983.2,1.2994282]
[1769191383476,3.77950661,2984.9,2983.4,0.16778]
[1769191383769,3.77950661,2984.9,2983.5,0.16778]
[1769191385366,3.77950661,2984.9,2983.0,3.356]
[1769191385571,3.77950661,2984.9,2983.8,0.16776]
[1769191386171,3.78749055,2985.4,2983.9,0.16775]
[1769191386473,3.78749055,2985.4,2984.1,0.16774]
[1769191387065,3.78749055,2985.4,2983.5,1.29614684]
[1769191387066,3.78749055,2985.4,2984.2,0.16774]
[1769191387466,0.00502402,2985.4,2983.6,1.87183447]
[1769191387675,3.79120971,2986.0,2983.7,0.00783447]
[1769191387868,3.79120971,2986.0,2984.5,0.16772]
[1769191388063,3.79120971,2986.0,2984.2,0.00502402]
[1769191388270,3.79372172,2985.7,2984.2,0.00502402]
[1769191388873,3.79372172,2985.7,2984.5,0.16772]
[1769191389472,3.79372172,2985.7,2984.2,0.00502402]
[1769191389677,0.00254537,2986.1,2985.0,0.16769]
[1769191389969,3.79206257,2986.1,2984.4,0.16773]
[1769191390772,3.79206257,2986.1,2984.5,0.16772]
[1769191390978,3.79206257,2986.1,2984.8,0.1677]
[1769191391278,3.79206257,2986.1,2985.0,0.16769]
[1769191394077,3.79206257,2986.1,2984.2,0.00502402]
[1769191394281,3.79206257,2986.1,2984.7,0.16771]
[1769191394775,3.79206257,2986.1,2984.9,0.1677]
[1769191394974,3.79206257,2986.1,2985.0,0.16769]
[1769191397373,0.00254537,2986.1,2985.3,0.16767]
[1769191397573,3.78313353,2986.0,2985.3,0.17040162]
[1769191398281,3.78313353,2986.0,2985.3,0.00273162]
[1769191399874,3.78480985,2985.8,2984.9,0.1677]
[1769191400079,0.00254537,2986.1,2985.1,0.16769]
[1769191400683,0.00254537,2986.1,2985.1,0.17103363]
[1769191401482,0.16755,2987.6,2985.1,0.00334363]
[1769191401682,0.16755,2987.6,2985.8,0.16764]
[1769191401877,3.354,2988.0,2986.3,0.16762]
[1769191402084,3.61961126,2987.9,2986.3,0.16762]
[1769191402283,3.61961126,2987.9,2986.4,0.00502402]
[1769191402678,3.62301184,2987.9,2986.4,0.00502402]
[1769191402881,0.00340058,2987.9,2986.4,0.00502402]
[1769191403280,0.00340058,2987.9,2986.4,3.58269443]
[1769191403877,3.61961126,2988.4,2986.4,3.58269443]
[1769191404181,3.61961126,2988.4,2987.0,0.16758]
[1769191405088,3.62232843,2988.4,2987.0,0.16758]
[1769191405294,0.00271717,2988.4,2987.0,0.16758]
[1769191405792,2.96984294,2989.6,2986.6,3.353]
[1769191405793,3.61961126,2989.2,2986.7,3.57767041]
[1769191406087,3.61961126,2989.2,2987.1,4.87381725]
[1769191406291,3.61961126,2989.2,2987.9,0.16753]
[1769191406788,3.61961126,2990.2,2987.8,3.353]
[1769191406992,3.62261434,2990.2,2988.5,0.16749]
[1769191407187,3.61961126,2989.9,2988.3,0.00502402]
[1769191408785,3.61961126,2989.5,2988.3,0.00502402]
[1769191409389,0.00341906,2989.4,2988.3,0.00502402]
[1769191409593,3.61961126,2989.5,2988.3,0.00502402]
[1769191410885,3.61961126,2990.0,2988.3,0.00502402]
[1769191411496,3.61961126,2989.6,2988.3,0.00502402]
[1769191411985,3.61961126,2989.4,2988.3,0.00502402]
[1769191412393,3.61961126,2989.4,2987.8,0.00380422]
[1769191412394,3.64201674,2988.7,2987.8,0.00380422]
[1769191412695,3.64201674,2988.7,2987.5,3.351]
[1769191412986,3.63859768,2988.5,2987.5,3.351]
[1769191413392,3.63859768,2989.0,2987.5,3.351]
[1769191413785,3.63859768,2989.0,2987.5,3.35520765]
[1769191413990,3.63859768,2989.0,2987.5,3.52275765]
[1769191416088,3.63859768,2988.8,2987.5,3.35520765]
[1769191416289,2.96984294,2991.4,2987.5,3.35520765]
[1769191416290,3.63859768,2989.3,2987.5,3.35520765]
[1769191416489,3.63859768,2989.3,2987.7,0.16754]
[1769191416890,3.63859768,2990.0,2988.0,0.16752]
[1769191417192,3.63859768,2990.0,2988.1,0.16752]
[1769191417394,3.80600768,2990.0,2988.1,0.16752]
[1769191417588,3.63859768,2989.8,2988.1,0.16752]
[1769191418188,3.63859768,2989.6,2988.1,0.16752]
[1769191418592,3.63859768,2989.6,2988.2,0.16751]
[1769191419096,3.63859768,2990.1,2988.3,0.1675]
[1769191419300,3.63859768,2990.1,2988.2,1.862]
[1769191419595,3.80600768,2990.1,2988.2,1.862]
[1769191419793,3.63859768,2989.9,2988.1,5.37851]
[1769191419991,3.63859768,2989.9,2988.3,0.1675]
[1769191420300,3.64201674,2989.9,2988.3,0.1675]
[1769191420796,0.00300308,2990.2,2988.1,5.211]
[1769191420797,3.63859768,2989.7,2988.1,5.211]
[1769191422694,3.63859768,2989.7,2988.4,0.1675]
[1769191423592,2.96984294,2993.7,2990.0,0.16741]
[1769191423793,4.09504185,2994.1,2989.0,3.41680989]
[1769191423794,0.16732,2991.6,2989.0,3.41680989]
[1769191423993,2.629,2991.6,2989.6,0.16743]
[1769191424190,0.16729,2992.3,2989.4,3.41680989]
[1769191424491,5.211,2992.2,2989.4,3.41956546]
[1769191424800,5.211,2992.2,2990.0,0.16741]
[1769191424999,0.17059218,2992.3,2990.0,0.16741]
[1769191425300,6.073,2992.2,2990.0,0.16741]
[1769191425498,3.63859768,2992.1,2990.0,0.16741]
[1769191425689,3.63859768,2992.1,2990.1,0.16741]
[1769191425893,9.71059768,2992.0,2990.3,0.16739]
[1769191426089,3.63859768,2991.9,2990.3,0.16739]
[1769191426598,3.349,2991.8,2990.3,0.16739]
[1769191426795,3.63859768,2991.7,2990.3,0.16739]
[1769191427001,2.722,2991.6,2990.3,0.16739]
[1769191427297,3.349,2991.5,2990.3,0.16739]
[1769191428203,3.63859768,2991.7,2990.3,0.16739]
[1769191428397,3.63859768,2991.7,2990.4,0.16739]
[1769191428605,9.70959768,2991.6,2989.7,0.16743]
[1769191428802,3.349,2991.5,2990.2,0.1674]
[1769191429000,3.63859768,2991.6,2990.2,0.1674]
[1769191429304,6.071,2991.5,2990.2,0.1674]
[1769191430400,3.349,2991.4,2990.3,0.16739]
[1769191430706,3.349,2991.3,2990.3,0.16739]
[1769191431205,3.63859768,2991.6,2990.3,0.16739]
[1769191431599,6.072,2991.5,2990.4,0.16739]
[1769191431997,3.63859768,2991.6,2990.4,0.16739]
[1769191432202,2.723,2991.4,2990.4,0.16739]
[1769191433407,3.348,2991.3,2990.4,0.16739]
[1769191435004,0.16729,2992.2,2989.5,1.29614684]
[1769191435005,3.63859768,2992.1,2989.8,3.41680989]
[1769191435209,3.63859768,2992.1,2990.9,0.16736]
[1769191435210,6.073,2992.0,2990.9,0.16736]
[1769191435703,3.63859768,2991.9,2990.4,0.16739]
[1769191438111,3.63859768,2991.9,2989.7,3.41680989]
[1769191438409,3.63859768,2991.9,2990.0,0.16741]
[1769191438611,3.63859768,2991.9,2990.1,0.16741]
[1769191438810,3.63859768,2991.7,2990.1,0.16741]
[1769191439211,9.71859768,2991.6,2990.1,0.16741]
[1769191439710,3.63859768,2991.5,2990.1,0.16741]
[1769191440506,3.63859768,2991.5,2989.5,0.16744]
[1769191440806,0.16736,2990.9,2988.8,0.16747]
[1769191441006,9.72059768,2990.8,2988.8,0.16747]
[1769191441207,3.63859768,2990.7,2988.8,0.16747]
[1769191441605,6.083,2990.6,2989.2,0.16746]
[1769191441801,3.63859768,2990.7,2989.2,0.17119496]
[1769191442306,3.63859768,2990.7,2989.6,0.16743]
[1769191442508,3.54303968,2991.3,2989.7,0.16742]
[1769191442809,5.208,2991.2,2989.8,0.16742]
[1769191443015,6.084,2991.1,2989.8,0.16742]
[1769191443313,9.62703968,2991.1,2989.8,0.16742]
[1769191443611,3.54303968,2991.0,2989.8,0.16742]
[1769191444209,3.54303968,2991.7,2990.2,0.1674]
[1769191444510,3.54303968,2991.5,2989.2,0.00373496]
[1769191444712,3.54303968,2991.5,2989.7,0.16743]
[1769191445108,3.54303968,2991.3,2989.7,0.16743]
[1769191446422,9.80264948,2991.2,2989.2,3.58457681]
[1769191446727,6.087,2991.1,2989.8,0.16742]
[1769191447207,3.71464948,2991.2,2989.8,0.16742]
[1769191447519,6.088,2991.1,2989.9,0.16741]
[1769191447715,3.71464948,2991.2,2989.9,0.16741]
[1769191448019,6.088,2991.1,2990.0,0.16741]
[1769191448319,9.80264948,2991.1,2990.0,0.16741]
[1769191449617,3.71464948,2991.0,2989.5,1.45783056]
[1769191449817,3.71464948,2991.0,2989.5,0.16744]
[1769191450018,3.71464948,2991.0,2989.8,0.16742]
[1769191450311,2.742,2991.0,2990.1,0.1674]
[1769191450818,2.744,2991.0,2990.2,0.1674]
[1769191451118,3.71464948,2992.0,2990.6,0.16737]
[1769191451312,3.348,2991.6,2990.6,0.16737]
[1769191452020,3.71464948,2991.5,2989.7,5.88353919]
[1769191452318,3.71464948,2991.5,2990.3,0.16739]
[1769191452716,2.746,2991.4,2990.4,0.16739]
[1769191453116,3.71464948,2992.0,2990.7,0.16737]
[1769191453317,6.094,2991.9,2990.7,0.16737]
[1769191453511,3.71464948,2991.9,2990.7,0.16737]
[1769191453714,6.094,2991.8,2990.7,0.16737]
[1769191454019,3.71464948,2991.9,2990.7,0.16737]
[1769191454217,2.747,2991.8,2990.7,0.16737]
[1769191454918,3.71464948,2991.9,2990.7,0.16737]
[1769191455125,3.71464948,2991.9,2990.1,7.17392975]
[1769191455126,2.747,2991.8,2990.3,5.88353919]
[1769191455316,3.348,2991.9,2990.3,5.88353919]
[1769191455317,2.747,2991.7,2990.3,5.88353919]
[1769191455525,2.747,2991.7,2990.3,2.35747413]
[1769191455817,2.747,2991.7,2990.2,2.35747413]
[1769191456322,2.748,2991.6,2990.5,0.16738]
[1769191456823,3.71464948,2992.0,2990.5,0.16738]
[1769191457020,6.095,2991.9,2990.5,0.16738]
[1769191457220,6.095,2991.8,2990.6,0.16738]
[1769191458021,3.71464948,2992.0,2990.6,0.16738]
[1769191458220,6.096,2991.9,2990.7,0.16737]
[1769191458418,3.71464948,2991.8,2990.7,0.16737]
[1769191459923,3.71464948,2991.8,2990.1,2.35747413]
[1769191460119,3.71464948,2991.2,2989.4,2.35747413]
[1769191460321,3.71464948,2991.0,2989.3,2.35747413]
[1769191460525,3.71464948,2991.0,2989.2,2.36120909]
[1769191460821,6.099,2990.9,2989.3,2.35747413]
[1769191461017,3.71464948,2990.8,2989.3,2.35747413]
[1769191461216,0.16734,2991.3,2989.9,0.16742]
[1769191461217,3.71464948,2991.3,2989.9,0.16742]
[1769191461421,2.753,2991.2,2990.1,0.1674]
[1769191462617,2.756,2991.1,2990.1,0.1674]
[1769191463417,3.71464948,2991.3,2990.1,0.1674]
[1769191463729,2.756,2991.2,2990.1,0.1674]
[1769191464932,6.47064948,2991.2,2990.1,0.1674]
[1769191465521,3.71464948,2991.9,2990.3,0.16739]
[1769191465822,2.758,2991.4,2989.9,2.52489413]
[1769191466023,6.47264948,2991.4,2989.9,2.52489413]
[1769191466220,3.71464948,2991.3,2989.9,2.52489413]
[1769191467333,2.762,2991.2,2989.9,2.52489413]
[1769191468331,3.71464948,2991.3,2989.9,2.52489413]
[1769191468524,2.764,2991.2,2989.9,2.52489413]
[1769191468928,2.764,2991.2,2990.0,0.16741]
[1769191469132,3.71464948,2991.3,2990.0,0.16741]
[1769191469333,2.765,2991.2,2990.0,0.16741]
[1769191469831,3.71464948,2991.8,2990.0,2.35747413]
[1769191470034,3.71464948,2991.8,2990.5,1.29039056]
[1769191470335,6.48164948,2991.8,2990.5,3.64786469]
[1769191470530,3.71464948,2991.8,2990.5,3.64786469]
[1769191470932,3.71795166,2992.3,2990.5,3.64786469]
[1769191471232,2.767,2992.0,2990.5,3.64786469]
[1769191471432,2.767,2992.0,2990.6,2.35747413]
[1769191471731,2.767,2992.0,2990.8,0.16737]
[1769191471931,3.71795166,2992.3,2990.8,0.16737]
[1769191472132,3.75786331,2992.1,2990.8,0.16737]
[1769191472437,6.52486331,2992.0,2990.8,0.16737]
[1769191472636,3.75786331,2991.9,2990.8,0.16737]
[1769191473238,6.52986331,2991.9,2990.8,0.16737]
[1769191473530,3.75786331,2991.9,2990.8,0.16737]
[1769191473939,6.15786331,2992.0,2990.8,0.16737]
[1769191474237,3.75786331,2991.9,2990.8,0.16737]
[1769191476532,3.76116549,2992.3,2991.0,0.16735]
[1769191476732,6.53716549,2992.3,2991.0,0.16735]
[1769191477135,3.76116549,2992.3,2991.0,0.16735]
[1769191477731,3.76116549,2992.3,2990.7,2.35747413]
[1769191477732,3.76116549,2992.3,2991.2,0.16734]
[1769191480035,0.00330218,2992.3,2991.3,0.16734]
[1769191480241,0.00330218,2992.3,2991.3,0.17120868]
[1769191480642,0.00330218,2992.3,2991.4,0.16733]
[1769191481138,3.75786331,2992.8,2991.4,0.16733]
[1769191481139,6.53486331,2992.8,2991.4,0.16733]
[1769191481341,3.75786331,2992.7,2991.4,0.16733]
[1769191482248,6.5388615,2992.7,2991.4,0.16733]
[1769191482538,0.00501554,2992.3,2991.4,0.16733]
[1769191483038,3.76287885,2992.3,2990.8,0.16737]
[1769191484238,3.76287885,2992.3,2990.8,0.17023569]
[1769191484845,2.78,2992.2,2990.9,0.16736]
[1769191485240,3.75786331,2992.1,2990.9,0.16736]
[1769191486546,3.75786331,2992.1,2990.5,2.35747413]
[1769191486740,2.78601554,2992.3,2990.0,2.35747413]
[1769191486741,3.75786331,2991.9,2990.0,2.35747413]
[1769191486942,3.75786331,2991.3,2989.5,2.35747413]
[1769191487244,3.75786331,2991.1,2989.3,5.87192413]
[1769191487545,3.75786331,2991.1,2989.4,0.16744]
[1769191487740,0.00501554,2990.5,2989.4,0.16744]
[1769191488043,0.00751207,2990.5,2989.4,0.16744]
[1769191489544,3.75786331,2991.4,2989.4,3.68106308]
[1769191489747,3.75786331,2991.4,2989.8,0.16742]
[1769191490247,6.54186331,2991.4,2989.8,0.16742]
[1769191490543,3.75786331,2991.3,2989.8,0.16742]
[1769191490745,0.00387966,2991.4,2990.1,1.29039056]
[1769191491139,0.00387966,2991.4,2990.5,0.16738]
[1769191492049,0.00387966,2991.4,2990.0,2.52488413]
[1769191492751,0.00387966,2991.4,2990.1,0.16741]
[1769191493144,3.76174297,2991.4,2990.1,0.16741]
[1769191493645,3.76174297,2991.4,2989.7,0.00501554]
[1769191494948,3.76174297,2991.4,2989.7,0.17244554]
[1769191495148,3.76174297,2991.4,2989.8,0.16742]
[1769191495451,6.18374297,2991.4,2990.0,0.16741]
[1769191495650,0.00387966,2991.4,2990.2,0.1674]
[1769191498147,0.00387966,2991.4,2990.4,0.16739]
[1769191498348,3.75786331,2992.4,2990.6,0.16737]
[1769191498652,3.75786331,2992.4,2990.7,0.16737]
[1769191499356,3.75786331,2992.4,2990.4,3.68106308]
[1769191499357,3.75786331,2992.4,2991.3,0.00501554]
[1769191499558,0.00286711,2992.4,2991.3,0.00501554]
[1769191499952,3.76073042,2992.4,2991.3,0.00501554]
[1769191501262,3.75786331,2992.2,2990.8,2.35747413]
[1769191501455,3.75786331,2992.0,2990.5,0.16738]
[1769191501651,7.10486331,2992.0,2990.5,0.16738]
[1769191501959,3.75786331,2991.9,2990.5,0.16738]
[1769191502154,3.92517331,2991.9,2990.1,2.35747413]
[1769191502460,2.929282,2991.7,2990.1,2.35747413]
[1769191502659,2.929282,2991.7,2989.8,3.14647546]
[1769191503358,2.761962,2991.7,2989.8,2.97905546]
[1769191503554,2.761962,2991.7,2990.0,0.16741]
[1769191503964,2.761962,2991.7,2989.5,7.67158252]
[1769191504256,2.761962,2991.7,2989.7,0.16743]
[1769191504459,2.761962,2991.5,2989.8,0.16742]
[1769191505459,2.761962,2991.5,2989.5,2.37876598]